fUST/lending_fUST_20250427
["ID","MTS","AMOUNT","RATE_DAILY","PERIOD"]
[359158123,1745751054049,-400.0,0.00018082,2]
[359158124,1745751054059,-400.0,0.00018082,2]
[359158125,1745751054069,-400.0,0.00018082,2]
[359158126,1745751054079,-491.21,0.00018082,2]
[359158127,1745751054088,-2170.67,0.00018082,2]
[359158128,1745751054098,-4000.0,0.00018082,2]
[359158129,1745751054108,-151.0,0.00018356,2]
[359158130,1745751054117,-400.0,0.00018356,2]
[359158131,1745751054127,-505.6,0.00018356,2]
[359158132,1745751054137,-400.0,0.00018356,2]
[359158133,1745751054147,-400.0,0.00018356,2]
[359158134,1745751054157,-400.0,0.00018356,2]
[359158135,1745751054167,-400.0,0.00018356,2]
[359158136,1745751054176,-400.0,0.00018356,2]
[359158137,1745751054186,-400.0,0.00018356,2]
[359158138,1745751054195,-484.9,0.00018356,2]
[359158139,1745751054205,-400.0,0.00018356,2]
[359158140,1745751054215,-633.36,0.00018356,2]
[359158141,1745751054225,-400.0,0.00018356,2]
[359158142,1745751054234,-324.35501556,0.00018356,2]
[359158143,1745751054244,-433.38,0.00018356,2]
[359158144,1745751054259,-400.7,0.00018356,2]
[359158145,1745751054269,-400.0,0.00018356,2]
[359158146,1745751054284,-445.9,0.00018356,2]
[359158147,1745751054294,-400.0,0.00018356,2]
[359158148,1745751054303,-400.0,0.00018356,2]
[359158149,1745751054313,-400.0,0.00018356,2]
[359158150,1745751054322,-703.07,0.00018356,2]
[359158151,1745751054332,-400.0,0.00018356,2]
[359158152,1745751054342,-400.0,0.00018356,2]
[359158153,1745751054352,-400.0,0.00018356,2]
[359158154,1745751054361,-400.0,0.00018356,2]
[359158155,1745751054371,-400.0,0.00018356,2]
[359158156,1745751054385,-881.17,0.00018356,2]
[359158157,1745751054396,-638.65,0.00018356,2]
[359158158,1745751054405,-400.0,0.00018356,2]
[359158159,1745751054415,-1543.01,0.00018356,2]
[359158160,1745751054426,-873.47,0.00018356,2]
[359158161,1745751054436,-400.0,0.00018356,2]
[359158162,1745751054447,-400.0,0.00018356,2]
[359158163,1745751054457,-400.0,0.00018356,2]
[359158164,1745751054468,-437.93,0.00018356,2]
[359158165,1745751054477,-200.0,0.00018356,2]
[359158166,1745751054487,-400.0,0.00018356,2]
[359158167,1745751054497,-400.0,0.00018356,2]
[359158168,1745751054508,-400.0,0.00018356,2]
[359158169,1745751054519,-566.93,0.00018356,2]
[359158170,1745751054530,-400.0,0.00018356,2]
[359158171,1745751054540,-887.45,0.00018356,2]
[359158172,1745751054550,-400.0,0.00018356,2]
[359158173,1745751054560,-400.0,0.00018356,2]
[359158174,1745751054569,-442.22,0.00018356,2]
[359158175,1745751054579,-338.68989597,0.00018356,2]
[359158176,1745751054589,-400.0,0.00018356,2]
[359158177,1745751054598,-151.0,0.00018356,2]
[359158178,1745751054608,-151.0,0.00018356,2]
[359158179,1745751054618,-632.66,0.00018356,2]
[359158180,1745751054628,-400.0,0.00018356,2]
[359158181,1745751054638,-400.0,0.00018356,2]
[359158182,1745751054648,-400.0,0.00018356,2]
[359158183,1745751054657,-400.0,0.00018356,2]
[359158184,1745751054667,-757.33,0.00018356,2]
[359158185,1745751054676,-400.0,0.00018356,2]
[359158186,1745751054686,-2016.05,0.00018356,2]
[359158187,1745751054697,-400.0,0.00018356,2]
[359158188,1745751054706,-400.67,0.00018356,2]
[359158189,1745751054716,-1915.12,0.00018356,2]
[359158190,1745751054726,-400.0,0.00018356,2]
[359158191,1745751054736,-357.518635,0.00018356,2]
[359158192,1745751054746,-357.518635,0.00018356,2]
[359158193,1745751054756,-400.0,0.00018356,2]
[359158194,1745751054766,-400.0,0.00018356,2]
[359158195,1745751054775,-400.0,0.00018356,2]
[359158196,1745751054786,-491.21,0.00018356,2]
[359158197,1745751054796,-2170.67,0.00018356,2]
[359158198,1745751054806,-1602.70557885,0.00018356,2]
[359158199,1745751054816,-587.0,0.00018468,2]
[359158200,1745751054952,-587.0,0.00018468,2]
[359158201,1745751054963,-527.41719099,0.00018486,2]
[359158202,1745751054973,-840.47993636,0.0001863,3]
[359158203,1745751054983,-1080.67468986,0.0001863,2]
[359158204,1745751054993,-20743.65051019,0.0001863,3]
[359158205,1745751055003,-12584.55399671,0.0001863,3]
[359158206,1745751055012,-160.0,0.0001863,3]
[359158207,1745751055022,-400.0,0.0001863,2]
[359158208,1745751055032,-505.6,0.0001863,2]
[359158209,1745751055041,-151.0,0.0001863,2]
[359158210,1745751055051,-151.0,0.0001863,2]
[359158211,1745751055061,-151.0,0.0001863,2]
[359158212,1745751055071,-400.0,0.0001863,2]
[359158213,1745751055081,-400.0,0.0001863,2]
[359158214,1745751055090,-400.0,0.0001863,2]
[359158215,1745751055100,-400.0,0.0001863,2]
[359158216,1745751055109,-400.0,0.0001863,2]
[359158217,1745751055119,-400.0,0.0001863,2]
[359158218,1745751055130,-400.0,0.0001863,2]
[359158219,1745751055141,-633.36,0.0001863,2]
[359158220,1745751055151,-400.0,0.0001863,2]
[359158221,1745751055162,-433.38,0.0001863,2]
[359158222,1745751055172,-400.7,0.0001863,2]
[359158223,1745751055182,-400.0,0.0001863,2]
[359158224,1745751055191,-445.9,0.0001863,2]
[359158225,1745751055201,-400.0,0.0001863,2]
[359158226,1745751055211,-400.0,0.0001863,2]
[359158227,1745751055220,-227.59361313,0.0001863,2]
[359158228,1745751055230,-703.07,0.0001863,2]
[359158229,1745751055239,-164.654826,0.0001863,2]
[359158230,1745751055249,-164.654826,0.0001863,2]
[359158231,1745751055259,-400.0,0.0001863,2]
[359158232,1745751055268,-151.0,0.0001863,2]
[359158233,1745751055278,-400.0,0.0001863,2]
[359158234,1745751055289,-151.0,0.0001863,2]
[359158235,1745751055299,-400.0,0.0001863,2]
[359158236,1745751055309,-400.0,0.0001863,2]
[359158237,1745751055319,-400.0,0.0001863,2]
[359158238,1745751055329,-881.17,0.0001863,2]
[359158239,1745751055339,-151.0,0.0001863,2]
[359158240,1745751055348,-638.65,0.0001863,2]
[359158241,1745751055358,-400.0,0.0001863,2]
[359158242,1745751055368,-1543.01,0.0001863,2]
[359158243,1745751055381,-873.47,0.0001863,2]
[359158244,1745751055390,-400.0,0.0001863,2]
[359158245,1745751055400,-400.0,0.0001863,2]
[359158246,1745751055410,-400.0,0.0001863,2]
[359158247,1745751055420,-437.93,0.0001863,2]
[359158248,1745751055430,-151.0,0.0001863,2]
[359158249,1745751055439,-400.0,0.0001863,2]
[359158250,1745751055449,-151.0,0.0001863,2]
[359158251,1745751055459,-453.60376414,0.0001863,2]
[359158252,1745751055468,-400.0,0.0001863,2]
[359158253,1745751055477,-566.93,0.0001863,2]
[359158254,1745751055487,-151.0,0.0001863,2]
[359158255,1745751055497,-152.930726,0.0001863,2]
[359158256,1745751055507,-152.930726,0.0001863,2]
[359158257,1745751055518,-400.0,0.0001863,2]
[359158258,1745751055528,-887.45,0.0001863,2]
[359158259,1745751055539,-370.24,0.0001863,2]
[359158260,1745751055550,-452.49,0.0001863,2]
[359158261,1745751055560,-442.22,0.0001863,2]
[359158262,1745751055570,-321.47969993,0.0001863,2]
[359158263,1745751055786,-78.52030007,0.0001863,2]
[359158264,1745751055796,-632.66,0.0001863,2]
[359158265,1745751055806,-178.83,0.0001863,2]
[359158266,1745751055816,-400.0,0.0001863,2]
[359158267,1745751055826,-400.0,0.0001863,2]
[359158268,1745751055836,-400.0,0.0001863,2]
[359158269,1745751055845,-757.33,0.0001863,2]
[359158270,1745751055855,-400.0,0.0001863,2]
[359158271,1745751055865,-2016.05,0.0001863,2]
[359158272,1745751055876,-400.0,0.0001863,2]
[359158273,1745751055887,-400.67,0.0001863,2]
[359158274,1745751055897,-220.062228,0.0001863,2]
[359158275,1745751055907,-818.77372922,0.0001863,2]
[359158276,1745751055922,-1096.34627078,0.0001863,2]
[359158277,1745751055932,-400.0,0.0001863,2]
[359158278,1745751055942,-400.0,0.0001863,2]
[359158279,1745751055952,-400.0,0.0001863,2]
[359158280,1745751055962,-400.0,0.0001863,2]
[359158281,1745751055972,-491.21,0.0001863,2]
[359158282,1745751055982,-2170.67,0.0001863,2]
[359158283,1745751055992,-323.0,0.00018728,2]
[359158284,1745751056003,-400.0,0.00018904,2]
[359158285,1745751056012,-505.6,0.00018904,2]
[359158286,1745751056022,-400.0,0.00018904,2]
[359158287,1745751056032,-400.0,0.00018904,2]
[359158288,1745751056042,-400.0,0.00018904,2]
[359158289,1745751056052,-400.0,0.00018904,2]
[359158290,1745751056062,-400.0,0.00018904,2]
[359158291,1745751056071,-400.0,0.00018904,2]
[359158292,1745751056082,-400.0,0.00018904,2]
[359158293,1745751056092,-633.36,0.00018904,2]
[359158294,1745751056101,-400.0,0.00018904,2]
[359158295,1745751056112,-433.38,0.00018904,2]
[359158296,1745751056123,-400.7,0.00018904,2]
[359158297,1745751056134,-400.0,0.00018904,2]
[359158298,1745751056144,-151.0,0.00018904,2]
[359158299,1745751056153,-445.9,0.00018904,2]
[359158300,1745751056163,-400.0,0.00018904,2]
[359158301,1745751056173,-400.0,0.00018904,2]
[359158302,1745751056183,-703.07,0.00018904,2]
[359158303,1745751056193,-400.0,0.00018904,2]
[359158304,1745751056202,-400.0,0.00018904,2]
[359158305,1745751056212,-400.0,0.00018904,2]
[359158306,1745751056221,-400.0,0.00018904,2]
[359158307,1745751056231,-466.63398172,0.00018904,2]
[359158308,1745751056242,-881.17,0.00018904,2]
[359158309,1745751056252,-638.65,0.00018904,2]
[359158310,1745751056262,-400.0,0.00018904,2]
[359158311,1745751056271,-1543.01,0.00018904,2]
[359158312,1745751056281,-873.47,0.00018904,2]
[359158313,1745751056291,-400.0,0.00018904,2]
[359158314,1745751056301,-400.0,0.00018904,2]
[359158315,1745751056310,-400.0,0.00018904,2]
[359158316,1745751056324,-437.93,0.00018904,2]
[359158317,1745751056334,-400.0,0.00018904,2]
[359158318,1745751056344,-465.1,0.00018904,2]
[359158319,1745751056353,-566.93,0.00018904,2]
[359158320,1745751056363,-400.0,0.00018904,2]
[359158321,1745751056374,-887.45,0.00018904,2]
[359158322,1745751056386,-442.22,0.00018904,2]
[359158323,1745751056395,-400.0,0.00018904,2]
[359158324,1745751056405,-632.66,0.00018904,2]
[359158325,1745751056417,-400.0,0.00018904,2]
[359158326,1745751056428,-400.0,0.00018904,2]
[359158327,1745751056440,-400.0,0.00018904,2]
[359158328,1745751056451,-757.33,0.00018904,2]
[359158329,1745751056462,-400.0,0.00018904,2]
[359158330,1745751056471,-207.60257369,0.00018904,2]
[359158331,1745751056487,-1808.44742631,0.00018904,2]
[359158332,1745751056497,-400.0,0.00018904,2]
[359158333,1745751056507,-400.67,0.00018904,2]
[359158334,1745751056517,-1915.12,0.00018904,2]
[359158335,1745751056527,-400.0,0.00018904,2]
[359158336,1745751056538,-400.0,0.00018904,2]
[359158337,1745751056548,-400.0,0.00018904,2]
[359158338,1745751056679,-400.0,0.00018904,2]
[359158339,1745751056689,-491.21,0.00018904,2]
[359158340,1745751056699,-2170.67,0.00018904,2]
[359158341,1745751056708,-160.0,0.00019178,3]
[359158342,1745751056718,-400.0,0.00019178,2]
[359158343,1745751056727,-505.6,0.00019178,2]
[359158344,1745751056739,-400.0,0.00019178,2]
[359158345,1745751056748,-400.0,0.00019178,2]
[359158346,1745751056758,-400.0,0.00019178,2]
[359158347,1745751056768,-400.0,0.00019178,2]
[359158348,1745751056778,-239.97672,0.00019178,2]
[359158349,1745751056788,-239.97672,0.00019178,2]
[359158350,1745751056797,-400.0,0.00019178,2]
[359158351,1745751056807,-400.0,0.00019178,2]
[359158352,1745751056817,-400.0,0.00019178,2]
[359158353,1745751056827,-633.36,0.00019178,2]
[359158354,1745751056836,-151.0,0.00019178,2]
[359158355,1745751056845,-151.0,0.00019178,2]
[359158356,1745751056854,-400.0,0.00019178,2]
[359158357,1745751056864,-433.38,0.00019178,2]
[359158358,1745751056874,-400.7,0.00019178,2]
[359158359,1745751056883,-400.0,0.00019178,2]
[359158360,1745751056893,-151.0,0.00019178,2]
[359158361,1745751056902,-445.9,0.00019178,2]
[359158362,1745751056912,-151.0,0.00019178,2]
[359158363,1745751056923,-400.0,0.00019178,2]
[359158364,1745751056932,-400.0,0.00019178,2]
[359158365,1745751056942,-703.07,0.00019178,2]
[359158366,1745751056952,-151.0,0.00019178,2]
[359158367,1745751056962,-151.0,0.00019178,2]
[359158368,1745751056972,-400.0,0.00019178,2]
[359158369,1745751056982,-354.5071866,0.00019178,2]
[359158370,1745751056992,-400.0,0.00019178,2]
[359158371,1745751057002,-400.0,0.00019178,2]
[359158372,1745751057012,-881.17,0.00019178,2]
[359158373,1745751057022,-638.65,0.00019178,2]
[359158374,1745751057032,-400.0,0.00019178,2]
[359158375,1745751057043,-1543.01,0.00019178,2]
[359158376,1745751057054,-873.47,0.00019178,2]
[359158377,1745751057065,-400.0,0.00019178,2]
[359158378,1745751057074,-400.0,0.00019178,2]
[359158379,1745751057084,-400.0,0.00019178,2]
[359158380,1745751057095,-437.93,0.00019178,2]
[359158381,1745751057104,-400.0,0.00019178,2]
[359158382,1745751057114,-566.93,0.00019178,2]
[359158383,1745751057125,-400.0,0.00019178,2]
[359158384,1745751057135,-887.45,0.00019178,2]
[359158385,1745751057145,-442.22,0.00019178,2]
[359158386,1745751057155,-400.0,0.00019178,2]
[359158387,1745751057166,-632.66,0.00019178,2]
[359158388,1745751057177,-400.0,0.00019178,2]
[359158389,1745751057188,-400.0,0.00019178,2]
[359158390,1745751057197,-400.0,0.00019178,2]
[359158391,1745751057207,-757.33,0.00019178,2]
[359158392,1745751057216,-400.0,0.00019178,2]
[359158393,1745751057226,-2016.05,0.00019178,2]
[359158394,1745751057236,-400.0,0.00019178,2]
[359158395,1745751057246,-400.67,0.00019178,2]
[359158396,1745751057256,-1915.12,0.00019178,2]
[359158397,1745751057265,-400.0,0.00019178,2]
[359158398,1745751057275,-400.0,0.00019178,2]
[359158399,1745751057286,-400.0,0.00019178,2]
[359158400,1745751057297,-400.0,0.00019178,2]
[359158401,1745751057307,-491.21,0.00019178,2]
[359158402,1745751057318,-2170.67,0.00019178,2]
[359158403,1745751057327,-300.0,0.00019178,2]
[359158404,1745751057338,-527.41719099,0.00019279,2]
[359158405,1745751057347,-400.0,0.00019452,2]
[359158406,1745751057357,-169.221604,0.00019452,2]
[359158407,1745751057366,-169.221604,0.00019452,2]
[359158408,1745751057379,-151.0,0.00019452,2]
[359158409,1745751057388,-505.6,0.00019452,2]
[359158410,1745751057400,-400.0,0.00019452,2]
[359158411,1745751057410,-400.0,0.00019452,2]
[359158412,1745751057420,-400.0,0.00019452,2]
[359158413,1745751057429,-400.0,0.00019452,2]
[359158414,1745751057438,-400.0,0.00019452,2]
[359158415,1745751057447,-400.0,0.00019452,2]
[359158416,1745751057457,-400.0,0.00019452,2]
[359158417,1745751057467,-633.36,0.00019452,2]
[359158418,1745751057477,-400.0,0.00019452,2]
[359158419,1745751057487,-433.38,0.00019452,2]
[359158420,1745751057498,-400.7,0.00019452,2]
[359158421,1745751057509,-400.0,0.00019452,2]
[359158422,1745751057519,-445.9,0.00019452,2]
[359158423,1745751057529,-400.0,0.00019452,2]
[359158424,1745751057538,-400.0,0.00019452,2]
[359158425,1745751057547,-703.07,0.00019452,2]
[359158426,1745751057556,-164.654826,0.00019452,2]
[359158427,1745751057566,-164.654826,0.00019452,2]
[359158428,1745751057576,-400.0,0.00019452,2]
[359158429,1745751057585,-400.0,0.00019452,2]
[359158430,1745751057594,-400.0,0.00019452,2]
[359158431,1745751057604,-881.17,0.00019452,2]
[359158432,1745751057614,-638.65,0.00019452,2]
[359158433,1745751057624,-400.0,0.00019452,2]
[359158434,1745751057634,-1543.01,0.00019452,2]
[359158435,1745751057644,-873.47,0.00019452,2]
[359158436,1745751057654,-400.0,0.00019452,2]
[359158437,1745751057671,-400.0,0.00019452,2]
[359158438,1745751057684,-400.0,0.00019452,2]
[359158439,1745751057694,-437.93,0.00019452,2]
[359158440,1745751057703,-151.0,0.00019452,2]
[359158441,1745751057713,-506.5343599,0.00019452,2]
[359158442,1745751057723,-151.0,0.00019452,2]
[359158443,1745751057734,-566.93,0.00019452,2]
[359158444,1745751057744,-151.0,0.00019452,2]
[359158445,1745751057753,-152.930726,0.00019452,2]
[359158446,1745751057763,-152.930726,0.00019452,2]
[359158447,1745751057773,-400.0,0.00019452,2]
[359158448,1745751057783,-887.45,0.00019452,2]
[359158449,1745751057792,-442.22,0.00019452,2]
[359158450,1745751057802,-163.765784,0.00019452,2]
[359158451,1745751057811,-400.0,0.00019452,2]
[359158452,1745751057821,-219.697223,0.00019452,2]
[359158453,1745751057831,-632.66,0.00019452,2]
[359158454,1745751057840,-400.0,0.00019452,2]
[359158455,1745751057849,-400.0,0.00019452,2]
[359158456,1745751057858,-400.0,0.00019452,2]
[359158457,1745751057868,-757.33,0.00019452,2]
[359158458,1745751057878,-400.0,0.00019452,2]
[359158459,1745751057887,-2016.05,0.00019452,2]
[359158460,1745751057897,-400.0,0.00019452,2]
[359158461,1745751057906,-400.67,0.00019452,2]
[359158462,1745751057916,-1915.12,0.00019452,2]
[359158463,1745751057927,-400.0,0.00019452,2]
[359158464,1745751057937,-357.518635,0.00019452,2]
[359158465,1745751057946,-357.518635,0.00019452,2]
[359158466,1745751057956,-168.56211248,0.00019452,2]
[359158467,1745751057966,-400.0,0.00019452,2]
[359158468,1745751057976,-178.40244414,0.00019452,2]
[359158469,1745751057986,-491.21,0.00019452,2]
[359158470,1745751057996,-2170.67,0.00019452,2]
[359158471,1745751058006,-151.0,0.000195,2]
[359158472,1745751058017,-400.0,0.00019726,2]
[359158473,1745751058029,-505.6,0.00019726,2]
[359158474,1745751058038,-400.0,0.00019726,2]
[359158475,1745751058048,-400.0,0.00019726,2]
[359158476,1745751058057,-400.0,0.00019726,2]
[359158477,1745751058067,-400.0,0.00019726,2]
[359158478,1745751058077,-400.0,0.00019726,2]
[359158479,1745751058086,-400.0,0.00019726,2]
[359158480,1745751058095,-400.0,0.00019726,2]
[359158481,1745751058105,-633.36,0.00019726,2]
[359158482,1745751058115,-400.0,0.00019726,2]
[359158483,1745751058125,-433.38,0.00019726,2]
[359158484,1745751058135,-400.7,0.00019726,2]
[359158485,1745751058145,-400.0,0.00019726,2]
[359158486,1745751058155,-445.9,0.00019726,2]
[359158487,1745751058164,-400.0,0.00019726,2]
[359158488,1745751058174,-400.0,0.00019726,2]
[359158489,1745751058184,-703.07,0.00019726,2]
[359158490,1745751058194,-400.0,0.00019726,2]
[359158491,1745751058204,-269.719711,0.00019726,2]
[359158492,1745751058214,-400.0,0.00019726,2]
[359158493,1745751058224,-400.0,0.00019726,2]
[359158494,1745751058235,-881.17,0.00019726,2]
[359158495,1745751058245,-638.65,0.00019726,2]
[359158496,1745751058255,-400.0,0.00019726,2]
[359158497,1745751058264,-1543.01,0.00019726,2]
[359158498,1745751058390,-873.47,0.00019726,2]
[359158499,1745751058401,-400.0,0.00019726,2]
[359158500,1745751058413,-400.0,0.00019726,2]
[359158501,1745751058424,-400.0,0.00019726,2]
[359158502,1745751058433,-437.93,0.00019726,2]
[359158503,1745751058444,-566.93,0.00019726,2]
[359158504,1745751058457,-400.0,0.00019726,2]
[359158505,1745751058468,-887.45,0.00019726,2]
[359158506,1745751058478,-442.22,0.00019726,2]
[359158507,1745751058488,-531.19006777,0.00019726,2]
[359158508,1745751058498,-632.66,0.00019726,2]
[359158509,1745751058508,-400.0,0.00019726,2]
[359158510,1745751058519,-400.0,0.00019726,2]
[359158511,1745751058528,-400.0,0.00019726,2]
[359158512,1745751058538,-757.33,0.00019726,2]
[359158513,1745751058547,-400.0,0.00019726,2]
[359158514,1745751058557,-2016.05,0.00019726,2]
[359158515,1745751058567,-400.0,0.00019726,2]
[359158516,1745751058577,-400.67,0.00019726,2]
[359158517,1745751058587,-1915.12,0.00019726,2]
[359158518,1745751058597,-400.0,0.00019726,2]
[359158519,1745751058607,-400.0,0.00019726,2]
[359158520,1745751058617,-491.21,0.00019726,2]
[359158521,1745751058626,-2170.67,0.00019726,2]
[359158522,1745751058636,-10166.68833124,0.00019772,2]
[359158523,1745751058645,-1032.41922577,0.00019772,2]
[359158524,1745751058654,-151.0,0.00019772,2]
[359158525,1745751058663,-151.0,0.00019772,2]
[359158526,1745751058673,-292.878464,0.00019772,2]
[359158527,1745751058682,-400.0,0.0002,2]
[359158528,1745751058692,-505.6,0.0002,2]
[359158529,1745751058708,-400.0,0.0002,2]
[359158530,1745751058720,-400.0,0.0002,2]
[359158531,1745751058731,-400.0,0.0002,2]
[359158532,1745751058740,-400.0,0.0002,2]
[359158533,1745751058750,-400.0,0.0002,2]
[359158534,1745751058760,-400.0,0.0002,2]
[359158535,1745751058769,-400.0,0.0002,2]
[359158536,1745751058779,-538.07893285,0.0002,2]
[359158537,1745751058790,-633.36,0.0002,2]
[359158538,1745751058801,-400.0,0.0002,2]
[359158539,1745751058811,-433.38,0.0002,2]
[359158540,1745751058822,-400.7,0.0002,2]
[359158541,1745751058832,-400.0,0.0002,2]
[359158542,1745751058843,-445.9,0.0002,2]
[359158543,1745751058855,-400.0,0.0002,2]
[359158544,1745751058865,-400.0,0.0002,2]
[359158545,1745751058875,-703.07,0.0002,2]
[359158546,1745751058886,-400.0,0.0002,2]
[359158547,1745751058896,-400.0,0.0002,2]
[359158548,1745751058906,-400.0,0.0002,2]
[359158549,1745751058916,-881.17,0.0002,2]
[359158550,1745751058926,-638.65,0.0002,2]
[359158551,1745751058937,-400.0,0.0002,2]
[359158552,1745751058947,-1543.01,0.0002,2]
[359158553,1745751058957,-873.47,0.0002,2]
[359158554,1745751058967,-400.0,0.0002,2]
[359158555,1745751058977,-455.8130717,0.0002,2]
[359158556,1745751058986,-400.0,0.0002,2]
[359158557,1745751058996,-437.93,0.0002,2]
[359158558,1745751059006,-566.93,0.0002,2]
[359158559,1745751059016,-400.0,0.0002,2]
[359158560,1745751059026,-887.45,0.0002,2]
[359158561,1745751059036,-442.22,0.0002,2]
[359158562,1745751059046,-632.66,0.0002,2]
[359158563,1745751059055,-400.0,0.0002,2]
[359158564,1745751059064,-209.21324617,0.0002,2]
[359158565,1745751059074,-400.0,0.0002,2]
[359158566,1745751059083,-757.33,0.0002,2]
[359158567,1745751059094,-525.58,0.0002,2]
[359158568,1745751059104,-2016.05,0.0002,2]
[359158569,1745751059115,-400.0,0.0002,2]
[359158570,1745751059124,-400.67,0.0002,2]
[359158571,1745751059135,-1915.12,0.0002,2]
[359158572,1745751059150,-2000.0,0.0002,4]
[359158573,1745751059171,-400.0,0.0002,2]
[359158574,1745751059185,-160.0,0.0002,3]
[359158575,1745751059205,-400.0,0.0002,2]
[359158576,1745751059224,-491.21,0.0002,2]
[359158577,1745751059241,-2170.67,0.0002,2]
[359158578,1745751059258,-527.41719099,0.00020072,2]
[359158579,1745751059277,-151.0,0.000202,4]
[359158580,1745751059294,-550.0,0.00020204,2]
[359158581,1745751059311,-452.0,0.00020204,2]
[359158582,1745751059324,-151.0,0.00020273,2]
[359158583,1745751059340,-202.007631,0.00020273,2]
[359158584,1745751059357,-202.007631,0.00020273,2]
[359158585,1745751059376,-150.61,0.00020273,2]
[359158586,1745751059393,-505.6,0.00020273,2]
[359158587,1745751059405,-400.0,0.00020273,2]
[359158588,1745751059419,-400.0,0.00020273,2]
[359158589,1745751059438,-400.0,0.00020273,2]
[359158590,1745751059452,-400.0,0.00020273,2]
[359158591,1745751059466,-400.0,0.00020273,2]
[359158592,1745751059480,-400.0,0.00020273,2]
[359158593,1745751059492,-400.0,0.00020273,2]
[359158594,1745751059505,-633.36,0.00020273,2]
[359158595,1745751059519,-400.0,0.00020273,2]
[359158596,1745751059535,-433.38,0.00020273,2]
[359158597,1745751059549,-400.7,0.00020273,2]
[359158598,1745751059565,-400.0,0.00020273,2]
[359158599,1745751059579,-445.9,0.00020273,2]
[359158600,1745751059594,-400.0,0.00020273,2]
[359158601,1745751059607,-400.0,0.00020273,2]
[359158602,1745751059621,-703.07,0.00020273,2]
[359158603,1745751059634,-400.0,0.00020273,2]
[359158604,1745751059648,-400.0,0.00020273,2]
[359158605,1745751059663,-400.0,0.00020273,2]
[359158606,1745751059677,-881.17,0.00020273,2]
[359158607,1745751059691,-638.65,0.00020273,2]
[359158608,1745751059703,-400.0,0.00020273,2]
[359158609,1745751059717,-1543.01,0.00020273,2]
[359158610,1745751059730,-873.47,0.00020273,2]
[359158611,1745751059744,-400.0,0.00020273,2]
[359158612,1745751059757,-400.0,0.00020273,2]
[359158613,1745751059771,-437.93,0.00020273,2]
[359158614,1745751059785,-566.93,0.00020273,2]
[359158615,1745751059797,-400.0,0.00020273,2]
[359158616,1745751059807,-887.45,0.00020273,2]
[359158617,1745751059817,-442.22,0.00020273,2]
[359158618,1745751059827,-632.66,0.00020273,2]
[359158619,1745751059837,-400.0,0.00020273,2]
[359158620,1745751059846,-400.0,0.00020273,2]
[359158621,1745751059857,-757.33,0.00020273,2]
[359158622,1745751059867,-2016.05,0.00020273,2]